bitfinex/quotes_ETHUSD_20220310
["timestamp","ask_amount","ask_price","bid_price","bid_amount"]
[1646931143397,0.00345613,2596.2,2596.1,0.53822581]
[1646931143607,0.00345613,2596.2,2596.1,2.46444581]
[1646931144007,0.00345613,2596.2,2596.1,2.95164581]
[1646931144204,0.00144156,2596.7,2596.2,0.07390884]
[1646931144503,0.0168722,2597.0,2596.4,0.07196818]
[1646931144763,0.0168722,2597.0,2596.4,0.89396818]
[1646931144951,0.0168722,2597.0,2596.4,0.822]
[1646931145150,0.0168722,2597.0,2596.5,0.0809802]
[1646931145351,0.16458372,2596.3,2596.1,2.57962]
[1646931145652,0.16458372,2596.3,2596.2,0.461]
[1646931148500,0.16458372,2596.3,2596.1,0.5621139]
[1646931148705,0.16458372,2596.3,2596.1,1.45042]
[1646931148909,0.16458372,2596.3,2596.1,0.4872]
[1646931149106,0.16458372,2596.3,2595.9,2.11886]
[1646931149305,1.12785372,2596.3,2595.9,1.92636]
[1646931150106,1.12785372,2596.3,2596.0,1.04785536]
[1646931150308,1.12785372,2596.3,2596.1,0.96322]
[1646931150506,0.003666,2596.2,2596.1,0.96322]
[1646931151308,0.16458372,2596.3,2596.1,0.96322]
[1646931151706,0.16798098,2596.3,2596.1,0.96322]
[1646931152752,0.17137822,2596.3,2596.1,0.96322]
[1646931152951,0.16798096,2596.3,2596.1,0.96322]
[1646931153150,0.16798096,2596.3,2596.2,0.4872]
[1646931153352,0.16798096,2596.3,2596.1,0.96322]
[1646931153754,0.16458372,2596.3,2596.1,0.96322]
[1646931155157,0.1679693,2596.3,2596.1,0.96322]
[1646931156198,0.16458372,2596.3,2596.1,0.96322]
[1646931156400,0.1679693,2596.3,2596.1,0.96322]
[1646931157401,0.16458372,2596.3,2596.1,0.96322]
[1646931157600,0.1679693,2596.3,2596.1,0.96322]
[1646931158804,0.16458372,2596.3,2596.1,0.96322]
[1646931159004,0.16781726,2596.3,2596.1,0.96322]
[1646931159764,0.16458372,2596.3,2596.1,0.96322]
[1646931159961,0.16781726,2596.3,2596.1,0.96322]
[1646931160961,0.16458372,2596.3,2596.1,0.96322]
[1646931161165,1.12780372,2596.3,2596.1,0.96322]
[1646931161364,0.16781726,2596.3,2596.1,0.96322]
[1646931162263,0.16781726,2596.3,2596.1,3.06159516]
[1646931162464,0.17107762,2596.3,2596.1,3.06159516]
[1646931162663,0.17107762,2596.3,2596.1,1.96322]
[1646931162664,0.16784408,2596.3,2596.1,1.96322]
[1646931163499,0.17110444,2596.3,2596.1,1.96322]
[1646931163704,0.16784408,2596.3,2596.2,0.90353962]
[1646931164510,0.16458372,2596.3,2596.2,0.90353962]
[1646931165309,0.16458372,2596.3,2596.2,1.36453962]
[1646931165509,0.16458372,2596.3,2596.2,2.36453962]
[1646931166211,0.16458372,2596.3,2596.2,2.43951521]
[1646931166811,0.16458372,2596.3,2596.2,2.70728574]
[1646931169155,0.16306286,2596.3,2596.2,2.70728574]
[1646931170552,0.16306286,2596.3,2596.2,2.63231015]
[1646931170753,0.16306286,2596.3,2596.2,1.72877053]
[1646931171605,1.47674915,2596.3,2596.2,1.72877053]
[1646931171800,1.47674915,2596.3,2596.2,1.26777053]
[1646931178807,0.0032706,2596.4,2596.3,0.96302]
[1646931179009,1.128,2597.1,2596.8,0.9632327]
[1646931179208,0.0168722,2597.0,2596.8,0.9632327]
[1646931179606,0.0168722,2597.0,2596.8,0.461]
[1646931179807,0.9797822,2597.0,2596.8,0.461]
[1646931180208,0.04586755,2596.9,2596.8,0.461]
[1646931180611,1.03139803,2597.0,2596.8,0.461]
[1646931181413,3.8841,2596.9,2596.6,1.0]
[1646931181611,0.04575826,2596.7,2596.1,8.10429097]
[1646931181812,3.54575826,2596.7,2595.9,1.96409097]
[1646931182011,0.04354501,2596.5,2595.8,0.1925]
[1646931182263,0.05535348,2596.3,2595.6,0.71050345]
[1646931182451,0.05535348,2596.3,2595.6,1.57931084]
[1646931182452,0.3841,2596.2,2595.6,1.57931084]
[1646931182651,0.04715968,2596.1,2595.6,1.57931084]
[1646931182854,0.04715968,2596.1,2595.6,0.86880739]
[1646931184057,0.0032818,2596.0,2595.6,0.86880739]
[1646931184258,0.9666618,2596.0,2595.6,0.86880739]
[1646931184658,0.9666618,2596.0,2595.5,1.71050345]
[1646931184857,1.3507618,2596.0,2595.5,1.0]
[1646931185058,0.04850828,2595.9,2595.3,0.71050345]
[1646931185258,0.96352,2595.8,2595.3,0.71050345]
[1646931185459,0.04674507,2595.7,2595.3,0.71050345]
[1646931185661,0.02909231,2595.7,2595.5,1.0]
[1646931186201,3.52909231,2595.7,2595.5,1.0]
[1646931186403,1.34762,2595.8,2595.5,1.0]
[1646931186602,0.05141222,2595.6,2595.5,1.0]
[1646931194808,0.0482502,2595.8,2595.5,1.461]
[1646931195010,0.00325914,2595.7,2595.5,1.461]
[1646931195208,0.00325914,2595.7,2595.5,2.42437]
[1646931195409,0.00325914,2595.7,2595.6,0.06917602]
[1646931195608,0.00325914,2595.7,2595.6,0.53017602]
[1646931195809,5.914e-05,2595.7,2595.6,12.28017602]
[1646931196010,0.0130346,2596.1,2595.6,13.56727947]
[1646931196209,0.0130346,2596.1,2595.7,15.14597797]
[1646931196412,0.05421272,2596.8,2595.9,0.08100036]
[1646931196413,0.01303444,2596.2,2595.9,0.08100036]
[1646931196610,0.01303444,2596.2,2596.0,0.461]
[1646931196809,0.01303444,2596.2,2596.1,1.0]
[1646931197010,0.01303444,2596.2,2596.1,3.38687]
[1646931197260,0.05421272,2596.8,2596.1,3.38687]
[1646931197449,0.05421272,2596.8,2596.7,1.04485783]
[1646931197655,0.0168722,2597.0,2596.8,0.08662152]
[1646931197854,0.0168722,2597.0,2596.9,1.461]
[1646931198660,0.76914657,2597.9,2597.0,0.25]
[1646931198857,1.231019,2597.8,2597.1,14.29220031]
[1646931199072,0.02606016,2598.4,2597.6,12.1341]
[1646931199257,0.02276912,2598.7,2597.9,0.0120593]
[1646931199455,0.02276912,2598.7,2598.6,1.01773353]
[1646931199657,0.02276912,2598.7,2598.6,1.47873353]
[1646931200457,0.02276912,2598.7,2598.6,5.94068353]
[1646931200659,0.0263046,2599.2,2598.6,5.94068353]
[1646931200863,7.3608514,2599.8,2599.0,13.09578]
[1646931201112,7.3608514,2599.8,2598.9,1.92336]
[1646931201113,0.0308514,2599.8,2599.7,1.08672566]
[1646931201311,1.02474626,2600.4,2599.7,1.08672566]
[1646931201312,0.01661652,2600.6,2599.7,5.13512722]
[1646931201512,1.9495291,2601.1,2601.0,1.00389356]
[1646931201711,1.9495291,2601.1,2601.0,1.53645277]
[1646931201712,0.01459148,2601.1,2601.0,1.53645277]
[1646931201909,0.41105373,2601.6,2601.1,0.07170149]
[1646931202107,0.41105373,2601.6,2601.2,0.461]
[1646931202306,0.41105373,2601.6,2601.3,0.08887845]
[1646931202507,0.41105373,2601.6,2601.3,0.54987845]
[1646931202707,0.41105373,2601.6,2601.4,0.07524575]
[1646931203114,0.41105373,2601.6,2600.5,0.53759826]
[1646931203312,0.41105373,2601.6,2600.6,0.08452798]
[1646931203512,0.41485085,2601.6,2600.6,0.08452798]
[1646931203913,0.9615,2601.5,2600.6,0.08452798]
[1646931204121,1.19249816,2601.5,2600.6,0.08452798]
[1646931204429,1.19249816,2601.5,2600.2,0.08829845]
[1646931204430,2.99999999,2601.1,2600.2,0.08829845]
[1646931204618,4.07370006,2601.0,2599.5,0.461]
[1646931204878,0.6841,2600.9,2599.3,0.21807612]
[1646931205068,0.19373914,2600.8,2599.7,1.16700496]
[1646931205266,0.19373914,2600.8,2599.8,0.08883032]
[1646931205267,0.3,2600.7,2599.8,0.08883032]
[1646931205670,0.31766688,2600.8,2599.7,2.14691453]
[1646931205868,0.31766688,2600.8,2599.7,1.0]
[1646931206169,0.4922,2600.7,2599.3,0.59919997]
[1646931206368,0.00345837,2600.4,2599.3,0.59919997]
[1646931206769,0.00345837,2600.4,2599.4,1.04515921]
[1646931207168,0.02112525,2600.4,2599.4,1.04515921]
[1646931207369,0.00345857,2600.0,2599.4,1.04515921]
[1646931207568,0.00345857,2600.0,2599.3,0.59919997]
[1646931207770,0.00345857,2600.0,2599.3,0.461]
[1646931207970,3.50345857,2600.0,2599.2,1.0]
[1646931208170,3.50345857,2600.0,2598.9,0.08616486]
[1646931208372,0.00320035,2599.8,2598.7,1.08158881]
[1646931208611,0.00320035,2599.8,2599.0,0.93112684]
[1646931209311,0.00320035,2599.8,2598.7,1.0]
[1646931209515,3.69550035,2599.8,2598.7,1.0]
[1646931209712,0.05267174,2599.7,2598.3,0.07140084]
[1646931209910,0.05267174,2599.7,2598.4,1.0]
[1646931209911,0.00342663,2599.5,2598.4,1.0]
[1646931210312,0.00342663,2599.5,2598.5,1.14241948]
[1646931210513,0.00342663,2599.5,2598.4,1.0]
[1646931210813,0.00342678,2599.1,2598.4,1.0]
[1646931211211,0.00342678,2599.1,2597.9,0.08872788]
[1646931211414,0.00342678,2599.1,2597.9,0.33872788]
[1646931211415,0.00486592,2599.1,2597.9,0.33872788]
[1646931211612,0.04636985,2599.4,2598.5,1.06578192]
[1646931211814,0.00143914,2599.2,2598.5,1.06578192]
[1646931212016,0.00346019,2598.9,2598.5,1.06578192]
[1646931213054,0.04554698,2599.7,2598.5,1.06578192]
[1646931213256,0.00346128,2598.8,2598.5,1.06578192]
[1646931214058,0.01384304,2599.2,2598.5,1.06578192]
[1646931214259,0.01384304,2599.2,2598.1,1.08547589]
[1646931214459,0.0034613,2598.8,2598.1,1.08547589]
[1646931215360,0.0034613,2598.8,2598.1,2.05378685]
[1646931215659,0.00345388,2598.6,2598.1,2.05378685]
[1646931216105,0.00345388,2598.6,2598.5,0.90226129]
[1646931216504,0.00143914,2599.2,2598.5,0.90226129]
[1646931216703,0.23674446,2599.3,2598.5,0.90226129]
[1646931216904,0.23674446,2599.3,2598.3,1.0]
[1646931216905,0.01396397,2598.9,2598.3,1.0]
[1646931217607,0.01396397,2598.9,2597.9,1.0]
[1646931217805,0.1923,2598.8,2597.9,1.0]
[1646931218008,0.1923,2598.9,2597.9,0.92477688]
[1646931218208,0.00349142,2598.7,2597.9,0.92477688]
[1646931219011,0.04326078,2598.9,2597.9,0.92477688]
[1646931219211,0.00349322,2598.4,2597.9,0.92477688]
[1646931220058,0.04477564,2598.7,2597.9,0.92477688]
[1646931220258,0.23707564,2598.7,2597.9,0.92477688]
[1646931220460,0.00345097,2598.3,2597.9,0.92477688]
[1646931220860,0.00345097,2598.3,2597.8,0.25]
[1646931221658,0.00345099,2598.2,2597.8,0.25]
[1646931221857,0.00345099,2598.2,2597.8,1.24700582]
[1646931222463,0.04477564,2598.7,2597.8,1.24700582]
[1646931222861,0.00345065,2598.1,2597.8,1.24700582]
[1646931223260,0.00345065,2598.1,2597.8,0.99700582]
[1646931223515,0.00345065,2598.1,2597.6,0.08087022]
[1646931223709,0.0865038,2598.2,2597.6,0.08087022]
[1646931224110,0.00356749,2598.1,2597.6,0.08087022]
[1646931225014,0.0865038,2598.2,2597.6,0.08087022]
[1646931225211,0.00356753,2598.0,2597.6,0.08087022]
[1646931225815,2.9632,2599.1,2598.1,9.0]
[1646931226014,2.90745891,2599.4,2599.2,1.1535677]
[1646931226212,4.4882,2599.8,2599.0,0.461]
[1646931226412,0.04280194,2600.1,2599.1,0.08804089]
[1646931226614,0.04280194,2600.1,2599.0,0.711]
[1646931226615,0.1923,2600.2,2599.2,0.461]
[1646931226912,0.1923,2600.2,2599.2,0.53873068]
[1646931226913,0.23899788,2600.2,2599.2,0.53873068]
[1646931227254,0.3841,2600.1,2599.1,1.0]
[1646931227464,0.04677184,2599.7,2599.1,1.0]
[1646931227658,0.04677184,2599.7,2598.4,0.07377649]
[1646931227853,0.1923,2599.6,2598.4,0.32377649]
[1646931228255,0.3841,2599.4,2598.4,0.32377649]
[1646931228456,0.5764,2599.4,2598.5,0.96232]
[1646931228659,0.5764,2599.4,2598.6,0.06882695]
[1646931228859,0.00222693,2599.1,2598.6,0.06882695]
[1646931229058,0.00222693,2599.1,2598.4,0.25]
[1646931229259,0.00222693,2599.1,2598.4,0.32001612]
[1646931229661,0.5764,2599.4,2598.6,0.07994651]
[1646931229863,0.3841,2599.4,2598.6,0.07994651]
[1646931230063,0.1923,2599.3,2598.6,0.07994651]
[1646931230264,0.00349913,2598.9,2598.6,0.07994651]
[1646931230462,0.00349913,2598.9,2598.7,0.96225]
[1646931231305,0.00380168,2598.9,2598.7,0.96225]
[1646931231506,0.00380168,2598.9,2598.7,1.84108865]
[1646931232105,0.00380168,2598.9,2598.8,0.53842048]
[1646931232304,0.01520444,2599.3,2598.9,0.07269649]
[1646931232503,0.01011864,2599.3,2599.1,1.08918327]
[1646931232705,0.01011864,2599.3,2599.2,0.07948411]
[1646931233308,0.96218,2599.9,2599.2,0.07948411]
[1646931233914,1.924444,2599.9,2599.2,0.07948411]
[1646931234112,1.924444,2599.9,2599.0,1.0]
[1646931234113,1.15448,2599.9,2599.1,0.07495774]
[1646931234313,1.15448,2599.9,2598.8,0.07867204]
[1646931234513,0.04278982,2599.8,2598.9,0.51731846]
[1646931234756,0.96223,2599.6,2598.9,0.51731846]
[1646931234955,0.96603512,2599.6,2599.0,0.00380609]
[1646931235153,0.00380512,2599.6,2599.0,0.00380609]
[1646931235955,0.04597786,2599.7,2598.9,0.07501846]
[1646931236153,0.00380522,2599.4,2599.0,0.00380589]
[1646931237354,0.00380512,2599.4,2599.0,0.0038058]
[1646931238061,0.38790512,2599.4,2599.0,0.0038058]
[1646931238255,0.3841,2599.2,2598.1,0.07361274]
[1646931238518,0.95204316,2599.1,2598.1,0.07361274]
[1646931238714,0.95204316,2599.1,2599.0,0.0038058]
[1646931238919,0.3,2599.2,2599.0,0.0038058]
[1646931239314,0.3,2599.3,2599.0,0.0038058]
[1646931239515,0.19610512,2599.4,2599.0,0.0038058]
[1646931239814,0.95215263,2599.3,2599.0,0.00736995]
[1646931240016,0.95215263,2599.3,2599.0,0.00356415]
[1646931240215,0.00356352,2599.4,2599.0,0.00356415]
[1646931240216,0.95215263,2599.2,2599.0,0.00356415]
[1646931240415,0.00356352,2599.4,2599.0,0.00356415]
[1646931240819,0.95798263,2599.4,2599.0,0.00356415]
[1646931241017,0.95441911,2599.3,2599.0,0.00356415]
[1646931241216,0.95441911,2599.2,2599.0,0.00356415]
[1646931241416,0.95441911,2599.1,2599.0,0.00356415]
[1646931241623,0.3,2599.2,2599.0,0.00356415]
[1646931241819,1.25441911,2599.1,2599.0,0.00356415]
[1646931242454,1.25441911,2599.1,2598.9,0.00356417]
[1646931242655,0.95441911,2599.0,2598.9,0.00356417]
[1646931243459,0.95441911,2599.0,2598.9,0.00322811]
[1646931244262,0.95441911,2599.0,2598.1,0.80735882]
[1646931244461,0.95441911,2599.0,2598.2,0.68707163]
[1646931244660,0.95441911,2599.0,2598.8,0.00322813]
[1646931244863,3.41074737,2599.4,2598.8,0.09231488]
[1646931245061,0.95778503,2599.3,2598.8,0.09231488]
[1646931245260,0.95778503,2599.2,2598.8,0.09231488]
[1646931245565,0.95778503,2599.1,2598.8,0.09231488]
[1646931245762,0.10913528,2598.6,2598.5,0.08742848]
[1646931246023,0.10913528,2598.6,2598.5,0.07188336]
[1646931246208,0.10913528,2598.6,2598.3,0.07392918]
[1646931247212,0.11403808,2598.6,2598.3,0.07392918]
[1646931247812,0.96016043,2598.5,2598.4,0.61700033]
[1646931248617,0.96016043,2598.5,2598.3,0.07392918]
[1646931248814,0.96016043,2598.5,2598.1,0.2822694]
[1646931249015,0.96016043,2598.5,2598.2,0.61758048]
[1646931249212,0.96016043,2598.5,2598.2,0.08030354]
[1646931249413,0.96016043,2598.5,2598.1,0.1923]
[1646931249614,0.96506323,2598.5,2598.1,0.1923]
[1646931249862,0.96016043,2598.4,2598.1,0.1923]
[1646931250063,0.96016043,2598.4,2598.2,0.61792077]
[1646931250665,0.96506323,2598.4,2598.2,0.00349791]
[1646931250864,0.96016043,2598.3,2598.2,0.00349791]
[1646931251665,0.96506323,2598.3,2598.2,0.00349791]
[1646931251863,0.96506323,2598.3,2598.1,0.00353795]
[1646931252063,0.96016043,2598.2,2598.1,0.00353795]
[1646931252664,1.92777323,2598.2,2598.0,0.00278876]
[1646931252864,0.96016043,2598.1,2598.0,0.00278876]
[1646931253063,0.96016043,2598.1,2598.0,0.00632676]
[1646931253265,1.26016043,2598.1,2598.0,0.00632676]
[1646931253526,1.45246043,2598.1,2598.0,0.00632676]
[1646931253923,1.45246043,2598.1,2598.0,0.00278876]
[1646931254221,1.83656043,2598.1,2598.0,0.00278876]
[1646931254418,3.4977434,2598.1,2598.0,0.00278876]
[1646931254819,4.4977434,2598.1,2598.0,0.00278876]
[1646931255019,3.4977434,2598.1,2598.0,0.00278876]
[1646931255219,4.4977434,2598.1,2598.0,0.00278876]
[1646931255418,2.79946043,2598.1,2598.0,0.00278876]
[1646931255621,3.79946043,2598.1,2598.0,0.00278876]
[1646931256121,6.79946042,2598.1,2598.0,8.876e-05]
[1646931256322,22.06569314,2598.1,2598.0,8.876e-05]
[1646931256524,22.06569314,2598.1,2596.8,0.61809097]
[1646931256525,0.00141127,2598.0,2596.8,0.61809097]
[1646931256822,0.00141127,2598.0,2597.9,0.00338999]
[1646931256823,6.27209069,2598.0,2597.9,0.00338999]
[1646931257021,6.27067942,2598.0,2597.9,0.00338999]
[1646931257254,10.16033942,2598.0,2597.9,0.00338999]
[1646931257456,14.75821079,2598.0,2597.9,0.00338999]
[1646931257754,14.75821079,2598.0,2596.8,0.6170293]
[1646931257755,0.3841,2597.9,2596.8,0.6170293]
[1646931257957,1.9262377,2597.4,2596.8,0.69554065]
[1646931258156,0.96016043,2597.3,2596.9,0.6170293]
[1646931258561,1.92626,2597.5,2597.0,0.08447164]
[1646931258760,2.22626,2597.5,2597.0,0.08447164]
[1646931258961,1.9263633,2597.4,2597.0,0.08447164]
[1646931259165,1.9263633,2597.4,2597.0,0.00324495]
[1646931259562,3.18939,2597.5,2597.0,0.00324495]
[1646931259764,3.18939,2597.5,2597.1,1.17080871]
[1646931259765,0.96315,2597.3,2597.1,1.17080871]
[1646931259970,0.00141127,2597.8,2597.2,0.70305882]
[1646931260164,7.26891137,2598.3,2597.3,0.61648726]
[1646931260165,0.00141127,2598.0,2597.3,0.61648726]
[1646931260363,0.95731876,2598.1,2597.4,0.08320638]
[1646931260565,0.95590749,2598.1,2597.2,0.08860791]
[1646931260763,0.95590749,2598.1,2597.4,0.0753587]
[1646931261023,2.31,2598.0,2597.1,0.00324491]
[1646931261215,4.53230748,2597.9,2597.2,0.08285266]
[1646931261415,0.95590749,2597.8,2597.5,0.00324473]
[1646931261615,0.3841,2597.7,2597.5,0.00324473]
[1646931261820,1.34000749,2597.6,2597.5,0.00324473]
[1646931262415,1.34000749,2597.6,2596.9,0.61622354]
[1646931262616,1.34000749,2597.6,2597.4,0.00327063]
[1646931262918,0.95590749,2597.5,2597.4,0.00327063]
[1646931263117,1.25590749,2597.5,2597.4,0.00327063]
[1646931263416,2.21898749,2597.5,2597.4,0.00327063]
[1646931264017,2.21898749,2597.5,2597.3,0.00327067]
[1646931264217,1.26308,2597.5,2597.3,0.00327067]
[1646931264855,0.00141127,2598.1,2597.3,0.00327067]
[1646931265056,0.95578512,2598.1,2597.3,0.00654136]
[1646931265255,0.95578512,2598.1,2597.3,0.08569478]
[1646931265456,0.95578512,2598.1,2597.3,0.00327069]
[1646931265657,1.34707,2598.0,2597.3,0.00327069]
[1646931265858,0.3841,2597.8,2597.3,0.00327069]
[1646931266056,1.34708,2597.8,2596.9,0.08616798]
[1646931266257,0.3,2597.7,2597.0,0.6155915]
[1646931266559,0.3,2597.7,2597.6,0.00327293]
[1646931266758,0.00071127,2597.4,2597.1,0.07593766]
[1646931266961,0.00071127,2597.4,2596.9,0.07945558]
[1646931267158,0.00071127,2597.4,2597.0,0.61554817]
[1646931267358,0.00071127,2597.4,2597.1,0.07282834]
[1646931267559,0.00071127,2597.4,2596.9,0.08124282]
[1646931267760,0.00071127,2597.4,2597.1,0.08151466]
[1646931267960,0.00071127,2597.4,2596.9,0.08633945]
[1646931268161,0.00071127,2597.4,2597.1,0.08272188]
[1646931268359,0.00071127,2597.4,2596.9,0.07488292]
[1646931268615,0.00071127,2597.4,2597.1,0.07925055]
[1646931268816,0.00071127,2597.4,2596.9,0.07449218]
[1646931269015,0.00071127,2597.4,2597.1,0.07733951]
[1646931269216,0.00071127,2597.4,2596.9,0.08870141]
[1646931269519,0.00071127,2597.4,2597.1,0.09015915]
[1646931270017,0.00071127,2597.4,2597.1,0.00380662]
[1646931270216,0.00071127,2597.4,2597.1,0.08795417]
[1646931270418,0.00071127,2597.4,2597.1,0.00380662]
[1646931272123,0.00071127,2597.4,2596.9,0.07692712]
[1646931272355,0.00071127,2597.4,2597.1,0.00380662]
[1646931274763,0.00071127,2597.4,2597.1,0.00326547]
[1646931276116,0.00071127,2597.4,2597.1,0.07895838]
[1646931277117,0.00071127,2597.4,2597.1,0.00326547]
[1646931278120,0.00071127,2597.4,2597.0,0.0773523]
[1646931278320,0.00071127,2597.4,2597.1,0.00341159]
[1646931280459,0.00071127,2597.4,2597.1,0.61592427]
[1646931280660,0.00071127,2597.4,2597.2,0.07937408]
[1646931280859,0.00071127,2597.4,2597.1,0.00341159]
[1646931281263,0.00071127,2597.4,2597.1,0.09268145]
[1646931281661,0.00071127,2597.4,2597.2,0.61666545]
[1646931281861,0.00071127,2597.4,2597.3,0.085619]
[1646931282060,0.00071127,2597.4,2597.1,0.00367947]
[1646931282260,0.00071127,2597.4,2597.1,0.08954918]
[1646931282565,0.00071127,2597.4,2597.3,0.07948869]
[1646931282961,0.00071127,2597.4,2596.9,0.06906649]
[1646931283161,0.00071127,2597.4,2597.1,0.00367947]
[1646931283363,0.00071127,2597.4,2597.1,0.07597393]
[1646931283612,0.00071127,2597.4,2597.2,0.61705218]
[1646931283814,0.00071127,2597.4,2597.3,0.07124714]
[1646931284212,0.00071127,2597.4,2596.9,0.08173354]
[1646931284413,0.00071127,2597.4,2597.1,0.00367947]
[1646931284712,0.00071127,2597.4,2597.1,0.08498036]
[1646931284911,0.00071127,2597.4,2597.3,0.07594765]
[1646931285115,0.00071127,2597.4,2597.3,0.69321499]
[1646931290166,0.00071127,2597.4,2597.3,0.69174088]
[1646931290363,0.00071127,2597.4,2597.2,0.00346229]
[1646931291206,0.00071127,2597.4,2597.1,0.08883278]
[1646931291207,0.96384267,2597.4,2597.1,0.08883278]
[1646931291408,0.95835985,2597.3,2597.1,0.08883278]
[1646931291610,0.95835985,2597.3,2597.2,0.00346236]
[1646931292411,0.95835985,2597.3,2597.1,0.08965425]
[1646931292612,1.34245985,2597.3,2596.4,0.08623279]
[1646931292815,1.34245985,2597.3,2597.1,0.00345388]
[1646931292816,0.95835985,2597.2,2597.1,0.00345388]
[1646931294018,0.95835985,2597.2,2597.0,0.00345392]
[1646931294618,2.22162985,2597.2,2597.0,0.00345392]
[1646931294860,0.95835985,2597.1,2597.0,0.00345392]
[1646931295261,1.92163985,2597.1,2597.0,0.00345394]
[1646931295471,3.26904815,2597.1,2597.0,0.00345394]
[1646931295662,3.97725952,2597.1,2597.0,0.00345394]
[1646931295964,4.46154815,2597.1,2597.0,0.00345394]
[1646931296461,4.46154815,2597.1,2596.4,0.07172361]
[1646931296663,0.96339,2596.8,2596.5,0.62372513]
[1646931296862,0.95835985,2596.7,2596.5,0.62372513]
[1646931299420,1.92177985,2596.7,2596.5,0.62372513]
[1646931299621,0.95835985,2596.6,2596.5,0.62372513]
[1646931300016,0.95835985,2596.6,2596.5,0.62750744]
[1646931300217,1.25835985,2596.6,2596.5,0.62750744]
[1646931300916,1.25835985,2596.6,2596.5,0.62372513]
[1646931301918,1.25835985,2596.6,2596.4,0.00378234]
[1646931302117,0.95835985,2596.5,2596.2,0.08267579]
[1646931302360,0.95835985,2596.5,2596.4,0.00378234]
[1646931302762,1.34245985,2596.5,2596.4,0.00378234]
[1646931303564,1.34245985,2596.5,2595.8,0.61427702]
[1646931303764,2.60601985,2596.4,2596.3,0.00367791]
[1646931303964,3.60601985,2596.4,2596.3,0.00367791]
[1646931304665,4.56954605,2596.4,2596.0,0.61427702]
[1646931304965,0.95835985,2596.3,2596.2,0.0035503]
[1646931305763,0.95835985,2596.3,2596.0,0.61427702]
[1646931306026,0.95835985,2596.3,2596.1,0.00355034]
[1646931306813,0.3841,2596.2,2596.1,0.00355034]
[1646931307016,0.3841,2596.2,2595.8,0.61337897]
[1646931307017,0.9637176,2595.9,2595.8,0.61337897]
[1646931307215,0.96371,2596.1,2595.8,0.61337897]
[1646931307515,0.96371,2596.1,2595.9,0.61337897]
[1646931307516,1.64781,2596.1,2595.9,0.61337897]
[1646931307716,0.6841,2595.9,2595.4,0.08995842]
[1646931307915,0.3,2595.9,2595.5,0.61312938]
[1646931308315,0.3841,2596.2,2595.5,0.61312938]
[1646931308519,0.96372,2596.0,2595.9,0.00357914]
[1646931308717,0.00079903,2595.8,2595.5,0.61312938]
[1646931308918,0.96453423,2595.8,2595.5,0.61312938]
[1646931309118,0.96453423,2595.8,2595.6,0.61312938]
[1646931309319,0.3,2595.7,2595.1,0.22716632]
[1646931309518,0.3,2595.7,2595.2,0.61280659]
[1646931309762,0.3,2595.7,2595.3,0.08011559]
[1646931309968,0.3,2595.7,2595.4,0.61280659]
[1646931309969,0.9638294,2595.6,2595.4,0.61280659]
[1646931310165,0.9638294,2595.6,2594.9,0.5237416]
[1646931310363,0.9638294,2595.6,2595.0,0.61282424]
[1646931310565,0.9638294,2595.6,2595.0,0.56282424]
[1646931310764,0.3,2595.5,2595.0,0.56282424]
[1646931310963,1.2639321,2595.5,2595.0,0.56282424]
[1646931311368,0.3714,2595.6,2595.3,1.17259531]
[1646931311564,0.42956841,2595.8,2595.3,1.17259531]
[1646931311565,0.04546841,2595.8,2595.3,1.17259531]
[1646931312364,0.00079903,2595.8,2595.4,0.08026899]
[1646931313164,0.00079903,2595.8,2595.7,0.9869457]
[1646931313368,0.00079903,2595.8,2595.7,1.06265984]
[1646931314428,0.00079903,2595.8,2595.7,5.02365984]
[1646931315421,0.00079903,2595.8,2595.7,6.02365984]
[1646931315825,0.00079903,2595.8,2595.7,18.96759021]
[1646931316024,0.00079903,2595.8,2595.7,23.89632897]
[1646931316223,0.00141127,2597.2,2596.3,0.96292]
[1646931316426,4.11741127,2597.4,2597.1,0.86802589]
[1646931316427,4.11882254,2597.4,2597.1,0.86802589]
[1646931316624,0.00071127,2597.4,2597.1,0.86802589]
[1646931317022,0.00071127,2597.4,2596.7,0.08518516]
[1646931317272,0.00071127,2597.4,2596.7,0.33518516]
[1646931318075,0.00071127,2597.4,2597.3,1.07275509]
[1646931319478,0.00071127,2597.4,2597.3,1.16043701]
[1646931320777,0.00071127,2597.4,2597.3,0.08768192]
[1646931321042,0.00071127,2597.4,2596.9,0.461]
[1646931321226,0.00071127,2597.4,2596.7,0.25]
[1646931321227,0.00071127,2597.4,2596.8,0.08639809]
[1646931322027,0.00071127,2597.4,2597.2,1.07815286]
[1646931322226,0.00071127,2597.4,2596.8,0.08639809]
[1646931323227,0.00071127,2597.4,2596.9,1.09612999]
[1646931323427,0.00071127,2597.4,2597.0,0.08437898]
[1646931324434,0.00071127,2597.4,2596.3,0.1925]
[1646931324435,0.3841,2597.2,2596.3,0.1925]
[1646931324634,0.23412414,2597.1,2596.1,1.08233346]
[1646931324874,0.3,2597.0,2596.1,1.0]
[1646931325073,0.4315337,2596.9,2595.9,0.08853418]
[1646931325270,0.04314849,2596.8,2596.1,0.96790758]
[1646931325470,1.00656459,2596.8,2596.1,0.96790758]
[1646931325870,0.3,2596.7,2596.1,0.96790758]
[1646931326071,1.00656459,2596.8,2596.5,0.90322778]
[1646931326271,1.11280955,2597.2,2596.0,0.25]
[1646931326272,0.04358563,2597.0,2596.2,0.06926696]
[1646931326470,0.019434,2597.2,2596.3,0.08504388]
[1646931326670,0.019434,2597.2,2596.2,0.08399785]
[1646931327470,0.0388114,2597.2,2596.6,1.11661742]
[1646931329218,1.0020914,2597.2,2596.6,1.11661742]
[1646931329818,0.0388114,2597.2,2597.0,1.22108763]
[1646931330018,0.0388114,2597.2,2596.6,1.2200827]
[1646931330019,0.26676614,2596.7,2596.6,1.2200827]
[1646931330222,0.26676614,2596.7,2596.6,1.8735827]
[1646931330419,0.26676614,2596.7,2596.6,6.3735827]
[1646931330621,0.28614354,2596.7,2596.6,3.51239762]
[1646931331427,0.28614354,2596.7,2596.6,2.51239762]
[1646931331620,0.28614354,2596.7,2596.6,2.31989762]
[1646931337014,0.28614354,2596.7,2596.6,1.85889762]
[1646931339225,1.22260393,2596.7,2596.6,1.2200827]
[1646931339769,1.22260393,2596.7,2595.8,3.89721912]
[1646931339967,0.9366546,2596.6,2595.9,0.63953498]
[1646931340167,0.9366546,2596.6,2596.0,0.25]
[1646931340368,0.9366546,2596.6,2596.1,0.63953498]
[1646931340566,0.0193774,2596.6,2596.1,0.63953498]
[1646931340768,0.0193774,2596.6,2596.1,1.67334929]
[1646931340968,0.0193774,2596.6,2596.2,0.63953498]
[1646931341570,0.0193774,2596.6,2596.5,1.16248417]
[1646931341972,0.0193774,2596.6,2596.5,1.80194791]
[1646931342375,0.0193774,2596.6,2596.5,1.16248417]
[1646931342573,0.0193774,2596.6,2596.5,1.88074743]